[Event "FIDE WCCC U10 2018"]
[Site "Santiago de Compostela"]
[Date "2018.11.05"]
[Round "2"]
[White "Nesterenko, Kyrylo"]
[Black "Amgalantengis, Enkh-Amgalan"]
[Result "1-0"]
[ECO "D10"]
[WhiteElo "1616"]
[BlackElo "1918"]
[Annotator "NA RC"]
[PlyCount "85"]
[EventDate "2018.11.04"]
[EventType "swiss"]
[EventCountry "ESP"]
[SourceTitle "playchess.com"]
[Source "ChessBase"]
[SourceQuality "1"]
[TimeControl "40/5400+30:1800+30"]

{[%evp 8,85,30,32767,32767,32767,22,20,29,26,32767,23,32,19,13,17,35,10,56,50,89,53,62,50,42,45,32767,54,79,47,67,23,48,48,69,53,33,32767,23,0,0,8,27,31,44,29,74,32767,35,32767,32767,32767,32767,32767,100,85,32767,98,147,141,146,32767,32767,32767,32767,32767,32767,32767,32767,32767,32767,32767,32767,32767,32767,32767,32767,12844,29980,29986]} 1. d4 {[%emt 0:00:00]} d5 {[%emt 0:00:00]} 2. c4 {[%emt 0:00:00]} c6 {[%emt 0:00:03]} 3. cxd5 {[%emt 0:00:00]} cxd5 {[%emt 0:00:19]} 4. Nc3 {[%emt 0:00:09]} Nf6 {[%emt 0:00:49]} 5. Bf4 {[%emt 0:00:13]} a6 {[%emt 0:03:50]} 6. e3 {[%emt 0:01:42]} e6 {[%emt 0:00:30]} 7. Bd3 {[%emt 0:00:53]} Nc6 {[%emt 0:03:30]} 8. Nf3 {[%emt 0:00:49]} Bd6 {[%emt 0:00:45]} 9. Bxd6 {[%emt 0:03:32]} Qxd6 {[%emt 0:00:17]} 10. O-O {[%emt 0:00:35]} O-O {[%emt 0:00:15] LiveBook: 62 Games} 11. Rc1 {[%emt 0:08:15]} Bd7 {[%emt 0:08:00] D13: Slav Defence: Exchange variation without ...Bf5} 12. Na4 {[%emt 0:17:04]} Rad8 $146 {[%emt 0:04:47]} ({Predecessor:} 12... Nb4 13. Bb1 Bxa4 14. Qxa4 Rfc8 15. Ne5 b5 16. Qa5 Ne8 17. Rxc8 Rxc8 18. a3 f6 19. axb4 fxe5 20. dxe5 Qxe5 21. Qxa6 {½-½ (40) Nakamura,H (2816)-Kamsky,G (2680) Las Vegas 2015}) 13. Nc5 {[%emt 0:03:04]} Bc8 {[%emt 0:03:38]} 14. Qa4 {[%emt 0:10:28]} e5 {[%emt 0:15:08]} 15. dxe5 {[%emt 0:00:36]} Nxe5 {[%emt 0:00:32]} 16. Nxe5 {[%emt 0:01:50]} Qxe5 {[%emt 0:00:07]} 17. Qd4 {[%emt 0:00:36]} Qd6 {[%emt 0:00:54]} 18. f3 {[%emt 0:01:14]} Rfe8 {[%emt 0:05:11]} 19. Rfe1 {[%emt 0:05:33]} h6 {[%emt 0:20:57]} 20. b4 {[%emt 0:06:54]} Nd7 {[%emt 0:13:19]} 21. a4 {[%emt 0:05:16]} Ne5 {[%emt 0:03:43]} 22. Red1 {[%emt 0:10:12]} Nc6 {[%emt 0:00:51]} 23. Qc3 {[%emt 0:00:15]} d4 {[%emt 0:05:07]} 24. exd4 {[%emt 0:00:18]} Qxd4+ {[%emt 0:04:25]} 25. Qxd4 {[%emt 0:00:11]} Nxd4 {[%emt 0:02:12]} 26. Kf2 {[%emt 0:00:34]} Ne6 {[%emt 0:00:30]} 27. Be4 {[%emt 0:01:24]} Nxc5 {[%emt 0:00:52]} 28. bxc5 {[%emt 0:00:23]} Kf8 {[%emt 0:01:38]} 29. Rb1 {[%emt 0:01:10]} Rxd1 {[%emt 0:00:33]} 30. Rxd1 {[%emt 0:00:11]} Ke7 {[%emt 0:00:14]} (30... f5 $11 {remains equal.} 31. Bc2 Ke7) 31. Rb1 {[%emt 0:00:20]} Kd8 32. Bxb7 {[%emt 0:00:23]} Kc7 {[%emt 0:01:50]} 33. Bxc8 {[%emt 0:01:06]} Rxc8 {[%emt 0:01:02]} 34. Rb6 {[%emt 0:00:09]} Ra8 {[%emt 0:00:02]} 35. Ke3 {[%emt 0:00:25]} Re8+ {[%emt 0:00:31]} 36. Kd3 {[%emt 0:00:08]} Re6 {[%emt 0:00:45]} 37. Rxe6 {[%emt 0:00:27]} fxe6 {[%emt 0:00:05]} 38. f4 {[%emt 0:00:14]} Kc6 {[%emt 0:00:19]} 39. Kc4 {[%emt 0:00:09]} g5 {[%emt 0:00:19]} 40. g3 {[%emt 0:00:00]} a5 {[%emt 0:00:00]} 41. h4 {[%emt 0:00:38]} gxh4 {[%emt 0:01:22]} 42. gxh4 {[%emt 0:00:13]} h5 {[%emt 0:00:10]} 43. Kd4 {[%emt 0:00:09]} 1-0

[Event "FIDE WCCC U10 2018"]
[Site "Santiago de Compostela"]
[Date "2018.11.05"]
[Round "2"]
[White "Ermitsch, Magnus"]
[Black "Jin Yueheng"]
[Result "0-1"]
[ECO "B13"]
[WhiteElo "1611"]
[BlackElo "1914"]
[Annotator "NA RC"]
[PlyCount "80"]
[EventDate "2018.11.04"]
[EventType "swiss"]
[EventCountry "ESP"]
[SourceTitle "playchess.com"]
[Source "ChessBase"]
[SourceQuality "1"]
[TimeControl "40/5400+30:1800+30"]

{[%evp 13,80,27,32767,35,29,42,30,31,33,27,25,37,37,22,35,3,35,30,34,21,38,30,35,-7,-13,0,22,0,21,-65,-63,-59,-52,-84,-46,-81,-102,-131,-110,-122,-115,-152,-131,-174,-193,-182,-168,-190,-175,-165,-164,-176,-193,-151,-147,-160,-143,-148,-145,-179,-153,-170,-172,-173,-191,-317,-252,-622,-668]} 1. e4 c6 {[%emt 0:00:00]} 2. d4 {[%emt 0:02:06]} d5 {[%emt 0:00:00]} 3. exd5 {[%emt 0:01:25]} cxd5 {[%emt 0:00:00]} 4. Bd3 {[%emt 0:01:33]} Nc6 {[%emt 0:00:00]} 5. c3 {[%emt 0:01:26]} Nf6 {[%emt 0:00:00]} 6. Bf4 {[%emt 0:01:00]} Bg4 {[%emt 0:00:00]} 7. Qb3 {[%emt 0:01:04]} Qc8 {[%emt 0:00:16]} 8. Nd2 {[%emt 0:01:31]} e6 {[%emt 0:01:27]} 9. Ngf3 {[%emt 0:01:30]} Be7 {[%emt 0:00:07]} 10. O-O {[%emt 0:01:35]} O-O {[%emt 0:00:05]} 11. h3 {[%emt 0:02:34]} Bh5 {[%emt 0:00:59]} 12. Rfe1 {[%emt 0:01:34] B13: Caro-Kann: Exchange Variation and Panov-Botvinnik Attack} Bg6 13. Bxg6 {[%emt 0:02:32]} hxg6 {[%emt 0:00:39] LiveBook: 22 Games} 14. Ne5 {[%emt 0:07:32] [#]} Na5 $146 {[%emt 0:01:07]} ({Predecessor:} 14... Re8 15. a4 Nd7 16. Nxd7 Qxd7 17. Nf3 Rac8 {½-½ (17) Chigaev,M (2550)-Alekseev,E (2636) St Petersburg 2016}) 15. Qa4 {[%emt 0:15:28]} Nc6 {[%emt 0:03:36]} 16. Ndf3 {[%emt 0:04:58]} Nd7 {[%emt 0:02:51]} 17. Nd3 {[%emt 0:06:51]} a6 {[%emt 0:02:11]} 18. b4 {[%emt 0:06:08]} Nb6 {[%emt 0:04:06]} 19. Qb3 {[%emt 0:03:00]} Nc4 {[%emt 0:00:58]} 20. a4 {[%emt 0:05:52]} b6 {[%emt 0:00:08]} 21. b5 {[%emt 0:04:17]} (21. g3 $11) 21... axb5 {[%emt 0:00:08]} 22. axb5 {[%emt 0:00:15]} N6a5 {[%emt 0:00:38]} 23. Qd1 {[%emt 0:03:19]} Na3 {[%emt 0:02:17]} 24. Bg5 {[%emt 0:05:48]} Bd6 {[%emt 0:02:01]} 25. Bf4 {[%emt 0:01:28]} Nxb5 {[%emt 0:00:24]} 26. Bxd6 {[%emt 0:00:12]} Nxd6 {[%emt 0:00:03]} 27. Qc2 {[%emt 0:01:43]} Qc7 {[%emt 0:02:45]} 28. Nf4 {[%emt 0:03:20]} Ne4 {[%emt 0:01:48]} 29. Ne2 {[%emt 0:01:12]} Rfc8 {[%emt 0:00:08]} 30. Rec1 {[%emt 0:03:10]} Nc4 {[%emt 0:01:11]} 31. Ra2 {[%emt 0:01:43]} Ncd6 {[%emt 0:00:34]} 32. Nd2 {[%emt 0:01:19]} Nxd2 {[%emt 0:03:05]} 33. Qxd2 {[%emt 0:00:07]} Ne4 {[%emt 0:00:04]} 34. Qb2 {[%emt 0:00:46]} Rxa2 {[%emt 0:01:06]} 35. Qxa2 {[%emt 0:00:50]} Qc4 {[%emt 0:00:05]} 36. Qb2 {[%emt 0:03:23]} Ra8 {[%emt 0:01:00]} 37. Rc2 {[%emt 0:00:12]} b5 {[%emt 0:00:05]} 38. f3 {[%emt 0:02:30]} Nd6 {[%emt 0:00:10]} 39. Ng3 {[%emt 0:01:07]} (39. Qc1 {war nötig.}) 39... Rc8 {[%emt 0:00:37]} 40. Nf1 $2 {[%emt 0:00:00] [#]} (40. Rc1) 40... b4 $19 {[%emt 0:00:00]} 0-1

[Event "FIDE WCCC U10 2018"]
[Site "Santiago de Compostela"]
[Date "2018.11.05"]
[Round "2"]
[White "Li Yihao"]
[Black "Uritsky, Yonathan"]
[Result "1/2-1/2"]
[ECO "B33"]
[WhiteElo "1601"]
[BlackElo "1902"]
[Annotator "NA RC"]
[PlyCount "92"]
[EventDate "2018.11.04"]
[EventType "swiss"]
[EventCountry "ESP"]
[SourceTitle "playchess.com"]
[Source "ChessBase"]
[SourceQuality "1"]
[TimeControl "40/5400+30:1800+30"]

{[%evp 11,82,22,32767,32767,32767,32767,18,23,32767,32767,32767,32767,32767,32767,32767,32767,15,32767,36,32767,32767,33,28,30,48,41,83,35,50,38,28,43,52,37,35,25,38,35,59,48,55,16,10,0,12,4,0,3,18,7,8,8,50,47,51,38,95,40,92,31,246,264,294,289,320,326,278,331,325,9,15,0,0]} 1. e4 {[%emt 0:00:00]} c5 {[%emt 0:00:00]} 2. Nf3 {[%emt 0:00:12]} Nc6 {[%emt 0:00:19]} 3. d4 {[%emt 0:00:17]} cxd4 {[%emt 0:00:11]} 4. Nxd4 {[%emt 0:00:16]} Nf6 {[%emt 0:00:24]} 5. Nc3 {[%emt 0:00:15]} e6 {[%emt 0:00:32]} 6. Ndb5 {[%emt 0:00:39]} d6 {[%emt 0:00:30]} 7. Bf4 {[%emt 0:00:08]} e5 {[%emt 0:00:13]} 8. Bg5 {[%emt 0:00:06]} a6 {[%emt 0:00:22]} 9. Na3 {[%emt 0:00:01]} b5 {[%emt 0:00:34]} 10. Nd5 {[%emt 0:00:07]} Be7 {[%emt 0:00:32]} 11. Bxf6 {[%emt 0:00:14]} Bxf6 {[%emt 0:00:15]} 12. c3 {[%emt 0:00:09]} O-O {[%emt 0:00:56]} 13. Nc2 {[%emt 0:00:07]} Bg5 {[%emt 0:00:27]} 14. a4 {[%emt 0:00:09]} bxa4 {[%emt 0:00:36]} 15. Rxa4 {[%emt 0:00:10]} a5 {[%emt 0:00:43]} 16. Bc4 {[%emt 0:01:34]} Rb8 {[%emt 0:00:56]} 17. b3 {[%emt 0:00:08]} Ne7 {[%emt 0:02:16] B33: Sicilian: Pelikan and Sveshnikov Variations} (17... Kh8 18. Nce3 g6 19. h4 Bxh4 20. g3 Bg5 21. f4 exf4 22. gxf4 Bh4+ 23. Kf1 Be6 24. Ra2 f5 25. Rah2 g5 {½-½ (37) Yu,Y (2760)-Lenic,L (2662) chess.com INT 2018}) 18. Nce3 {[%emt 0:01:54]} Kh8 {[%emt 0:04:42]} 19. Nxe7 {[%emt 0:00:26]} Qxe7 {[%emt 0:03:14]} 20. Nd5 {[%emt 0:00:07]} Qd8 {[%emt 0:00:46]} 21. O-O {[%emt 0:00:38]} f5 {[%emt 0:01:54]} 22. exf5 {[%emt 0:00:15] LiveBook: 28 Games} Bxf5 {[%emt 0:00:59]} 23. Qe2 {[%emt 0:00:51]} Bd7 {[%emt 0:05:41]} 24. Ra2 {[%emt 0:00:40]} Ra8 {[%emt 0:05:19]} 25. Rfa1 {[%emt 0:03:25]} Bc6 {[%emt 0:02:49]} 26. b4 $146 {[%emt 0:00:56]} ({Predecessor:} 26. Qd3) 26... axb4 $1 {[%emt 0:04:54]} 27. Rxa8 {[%emt 0:00:34]} Bxa8 {[%emt 0:00:15]} 28. cxb4 {[%emt 0:00:18]} Bxd5 {[%emt 0:10:48]} 29. Bxd5 {[%emt 0:00:19]} Qb6 {[%emt 0:00:09]} 30. b5 {[%emt 0:08:24]} Qd4 {[%emt 0:03:09]} 31. Rd1 {[%emt 0:02:05]} Qc5 {[%emt 0:01:21]} (31... Rxf2 $5 32. Rxd4 Rxe2 $11) 32. Bf3 {[%emt 0:00:25]} g6 {[%emt 0:06:40]} 33. Qd3 {[%emt 0:05:22]} Rd8 {[%emt 0:00:50]} 34. Qd5 {[%emt 0:06:44]} Rb8 {[%emt 0:07:05]} 35. Rb1 {[%emt 0:10:04]} Bd8 $2 {[%emt 0:03:23] [#]} (35... Qxd5 $1 $11 {and Black is okay.} 36. Bxd5 Bd8) 36. Qf7 $1 {[%emt 0:01:25]} Bg5 {[%emt 0:01:41] [#]} 37. b6 $1 {[%emt 0:07:08]} Qc2 {[%emt 0:01:54]} 38. Re1 {[%emt 0:06:12]} Qc3 {[%emt 0:03:37]} 39. Rd1 {[%emt 0:02:55]} Qb4 {[%emt 0:04:28] [#]} 40. b7 $2 {[%emt 0:00:00]} (40. h4 $1 $18 {[%cal Rh4g5][%mdl 512]} Bxh4 (40... Qxh4 41. b7) 41. b7) 40... e4 {[%emt 0:00:00]} 41. Bg4 {[%emt 0:12:44]} Qxb7 $11 {[%emt 0:01:02]} 42. Qxb7 {[%emt 0:00:12]} Rxb7 {[%emt 0:00:08]} 43. Rxd6 {[%emt 0:00:07]} h5 {[%emt 0:01:23]} 44. Be2 {[%emt 0:00:58]} Kg7 {[%emt 0:00:35]} 45. g3 {[%emt 0:00:17]} Rb2 {[%emt 0:00:13]} 46. Kf1 {[%emt 0:03:43]} Rb1+ {[%emt 0:00:22]} 1/2-1/2

[Event "FIDE WCCC U10 2018"]
[Site "Santiago de Compostela"]
[Date "2018.11.05"]
[Round "2"]
[White "Lomtadze, Davit"]
[Black "Habans Aguerrea, Javier"]
[Result "1-0"]
[ECO "B40"]
[WhiteElo "1595"]
[BlackElo "1892"]
[Annotator "NA RC"]
[PlyCount "119"]
[EventDate "2018.11.04"]
[EventType "swiss"]
[EventCountry "ESP"]
[SourceTitle "playchess.com"]
[Source "ChessBase"]
[SourceQuality "1"]
[TimeControl "40/5400+30:1800+30"]

{[%evp 8,119,15,32767,15,32767,32767,32767,26,32767,32767,24,31,27,34,23,39,27,21,12,14,25,50,48,106,32,19,0,16,23,25,-18,-11,0,-14,-2,0,0,0,0,0,-7,-11,-14,0,-29,10,-8,-6,-7,18,0,20,17,47,-5,0,0,0,-14,0,0,0,0,9,0,0,0,0,0,0,0,0,10,7,8,77,2,0,32767,0,0,32767,12,32767,32767,32767,32767,32767,32767,32767,32767,32767,791,545,1869,1516,4840,2964,5139,29978,29984,32767,12846,32767,29986,32767,29987,29985,29988,32767,32767,32767,29994]} 1. e4 {[%emt 0:00:00]} c5 {[%emt 0:00:00]} 2. Nf3 {[%emt 0:00:00]} e6 {[%emt 0:00:00]} 3. c3 {[%emt 0:00:00]} Nf6 {[%emt 0:00:00]} 4. e5 {[%emt 0:00:21]} Nd5 {[%emt 0:00:07]} 5. d4 {[%emt 0:00:45]} cxd4 {[%emt 0:00:08]} 6. cxd4 {[%emt 0:00:50]} b6 {[%emt 0:00:11]} 7. Bd2 {[%emt 0:01:38]} Ba6 {[%emt 0:06:08] LiveBook: 3 Games B22: Sicilian: 2 c3} 8. Bxa6 {[%emt 0:01:06]} (8. Nc3 Bxf1 9. Kxf1 Nxc3 10. Bxc3 Na6 11. d5 Nc7 12. d6 Nd5 13. h4 g6 14. h5 g5 15. h6 {1-0 (32) Fingerov,D (2405)-Bogdanovich,S (2464) Yuzhny 2010}) 8... Nxa6 {[%emt 0:00:02]} 9. O-O {[%emt 0:01:59]} Be7 {[%emt 0:00:10]} 10. Qe2 {[%emt 0:05:20]} Nac7 {[%emt 0:01:10]} 11. Nc3 {[%emt 0:01:00]} Nxc3 {[%emt 0:00:14]} 12. bxc3 {[%emt 0:02:39]} O-O {[%emt 0:00:20]} 13. Rac1 $146 {[%emt 0:09:09]} ({Predecessor:} 13. c4 d5 14. exd6 Bxd6 {½-½ (42) Kristensen,J (2325)-Tanggaard,H Norresundby 1992}) 13... Rc8 {[%emt 0:04:27]} 14. c4 {[%emt 0:05:26]} Ba3 {[%emt 0:02:37]} 15. Rc2 {[%emt 0:05:06]} d5 {[%emt 0:05:26] [#]} (15... Be7 $14) 16. exd6 {[%emt 0:05:25]} (16. Qd3 $1 $16 Be7 17. c5) 16... Bxd6 {[%emt 0:00:54]} 17. c5 {[%emt 0:04:17]} bxc5 {[%emt 0:00:13]} 18. dxc5 {[%emt 0:00:13]} Nd5 {[%emt 0:02:16]} 19. Bg5 {[%emt 0:11:24]} Be7 {[%emt 0:00:03]} 20. Bxe7 {[%emt 0:00:20]} Qxe7 {[%emt 0:00:02]} 21. Rfc1 {[%emt 0:01:10]} Rfd8 {[%emt 0:02:21]} 22. Qe4 {[%emt 0:13:02]} h6 {[%emt 0:02:12]} 23. h3 {[%emt 0:07:23]} Rc7 {[%emt 0:01:25]} 24. Ne5 {[%emt 0:08:07]} Rdc8 {[%emt 0:00:20]} 25. Nd3 {[%emt 0:02:08]} Qd7 {[%emt 0:01:37]} 26. Qd4 {[%emt 0:08:06]} f6 {[%emt 0:02:28]} 27. Nf4 {[%emt 0:04:23]} Nxf4 {[%emt 0:00:04]} 28. Qxf4 {[%emt 0:00:04]} e5 {[%emt 0:00:29]} 29. Qc4+ {[%emt 0:00:49]} Qf7 {[%emt 0:00:01]} 30. Qe4 {[%emt 0:00:41]} Rc6 {[%emt 0:01:08]} 31. Qd3 {[%emt 0:01:44]} Qe6 {[%emt 0:00:29]} 32. a4 {[%emt 0:00:48]} f5 {[%emt 0:00:03]} 33. f3 {[%emt 0:00:17]} a6 {[%emt 0:01:50]} 34. Kf2 {[%emt 0:00:41]} Kf7 {[%emt 0:00:19]} 35. a5 {[%emt 0:00:31]} Ke7 {[%emt 0:00:06]} 36. Qa3 {[%emt 0:00:36]} Qd5 {[%emt 0:00:36]} 37. Qb4 {[%emt 0:00:25]} Qd4+ {[%emt 0:00:19]} 38. Qxd4 {[%emt 0:00:06]} exd4 {[%emt 0:00:03]} 39. Ke2 {[%emt 0:00:33]} Rd8 {[%emt 0:08:21]} 40. Kd3 {[%emt 0:00:00]} Rd5 $1 {[%emt 0:00:00]} 41. f4 {[%emt 0:12:02]} g5 {[%emt 0:03:39]} (41... Kd7 $11 {remains equal.}) 42. g3 {[%emt 0:01:19]} gxf4 {[%emt 0:00:01]} 43. gxf4 {[%emt 0:00:06]} Kf7 {[%emt 0:02:54]} 44. Rc4 {[%emt 0:00:25]} Ke7 {[%emt 0:02:04]} 45. Re1+ {[%emt 0:01:31]} Kf7 {[%emt 0:01:17]} 46. Re5 {[%emt 0:01:16]} Rxe5 {[%emt 0:00:14]} 47. fxe5 {[%emt 0:00:04]} Ke6 {[%emt 0:01:10]} 48. Kxd4 {[%emt 0:00:29]} Rc8 {[%emt 0:00:24]} 49. c6 {[%emt 0:00:19]} f4 {[%emt 0:00:36]} 50. Ke4 {[%emt 0:01:09]} f3 51. Kxf3 {[%emt 0:00:16]} Kxe5 {[%emt 0:00:30]} 52. c7 {[%emt 0:00:21]} Kf5 {[%emt 0:00:34]} 53. Rc5+ {[%emt 0:00:17]} Kg6 {[%emt 0:00:09]} 54. Ke4 {[%emt 0:00:09]} Kf6 {[%emt 0:00:11]} 55. Kd5 {[%emt 0:00:15]} Kg5 {[%emt 0:03:45]} 56. Kd6+ {[%emt 0:00:10]} Kh4 {[%emt 0:00:29]} 57. Kd7 {[%emt 0:00:09]} Rg8 {[%emt 0:00:09]} 58. c8=Q Rg7+ {[%emt 0:00:15]} 59. Kc6 {[%emt 0:00:18]} h5 {[%emt 0:02:22]} 60. Qd8+ {[%emt 0:00:15]} 1-0

[Event "FIDE WCCC U10 2018"]
[Site "Santiago de Compostela"]
[Date "2018.11.05"]
[Round "2"]
[White "Bakhrillaev, Bakhrom"]
[Black "Vetokhin, Savva"]
[Result "1/2-1/2"]
[ECO "B57"]
[WhiteElo "1587"]
[BlackElo "1874"]
[Annotator "NA RC"]
[PlyCount "102"]
[EventDate "2018.11.04"]
[EventType "swiss"]
[EventCountry "ESP"]
[SourceTitle "playchess.com"]
[Source "ChessBase"]
[SourceQuality "1"]
[TimeControl "40/5400+30:1800+30"]

{[%evp 17,102,28,31,33,20,7,24,13,22,8,34,12,39,10,0,0,-20,-8,0,0,0,-25,-28,-85,-7,-15,20,0,6,4,0,-14,-4,-37,-28,-37,-33,-45,-38,-345,-345,32767,-370,32767,32767,32767,32767,32767,32767,32767,32767,-292,32767,32767,32767,32767,32767,32767,32767,32767,32767,32767,32767,32767,32767,32767,-371,-447,-258,-279,0,-170,-8,-8,0,0,0,0,0,0,0,0,0,0,0,0,0]} 1. e4 {[%emt 0:00:00]} c5 {[%emt 0:00:00]} 2. Nf3 {[%emt 0:00:44]} Nc6 {[%emt 0:00:00]} 3. d4 {[%emt 0:00:18]} cxd4 {[%emt 0:00:00]} 4. Nxd4 {[%emt 0:00:09]} Nf6 {[%emt 0:00:00]} 5. Nc3 {[%emt 0:00:23]} d6 {[%emt 0:00:04]} 6. Bc4 {[%emt 0:00:12]} Qb6 {[%emt 0:00:06]} 7. Nb3 {[%emt 0:02:12]} e6 {[%emt 0:01:28]} 8. Be3 {[%emt 0:01:35]} Qc7 {[%emt 0:01:08]} 9. O-O {[%emt 0:04:52]} Be7 {[%emt 0:04:48]} 10. f4 {[%emt 0:02:39]} O-O {[%emt 0:10:17]} 11. Be2 {[%emt 0:02:21] LiveBook: 36 Games B57: Classical Sicilian: Sozin with 6...Qb6} Rd8 {[%emt 0:03:11]} 12. Bf3 {[%emt 0:04:12]} Nd7 $146 {[%emt 0:12:42]} ({Predecessor:} 12... d5 13. e5 Ne4 14. Nb5 Qb8 15. c3 b6 16. N5d4 Qc7 17. Nxc6 Qxc6 {0-1 (35) Korchmar,V (2253)-Epishin,V (2544) St Petersburg 2011}) 13. Qe2 {[%emt 0:19:04]} a6 14. a4 b6 {[%emt 0:18:23]} 15. Nd4 {[%emt 0:05:32]} Bb7 {[%emt 0:02:43]} 16. Qc4 {[%emt 0:01:09]} Qc8 $1 {[%emt 0:12:32]} 17. Nxc6 {[%emt 0:19:09]} Qxc6 {[%emt 0:01:36]} 18. Qxc6 {[%emt 0:04:46]} Bxc6 {[%emt 0:00:42]} 19. Ne2 {[%emt 0:03:25]} Nc5 {[%emt 0:03:13]} 20. b3 {[%emt 0:06:17]} (20. Nc3 $11 {remains equal.}) 20... b5 {[%emt 0:02:31]} (20... Bxe4 $17 21. Bxe4 Nxe4 22. Bxb6 Rdc8) 21. Nd4 {[%emt 0:00:53]} Bd7 {[%emt 0:01:16]} 22. axb5 {[%emt 0:02:24]} axb5 {[%emt 0:01:01]} 23. e5 {[%emt 0:00:23]} d5 {[%emt 0:00:29]} 24. Be2 {[%emt 0:00:14]} b4 {[%emt 0:00:47]} 25. Bb5 {[%emt 0:00:54]} Bxb5 {[%emt 0:01:16]} 26. Nxb5 {[%emt 0:00:07]} Ne4 {[%emt 0:03:08]} 27. Na7 {[%emt 0:02:37]} Bf8 {[%emt 0:00:53]} 28. Ra5 $2 {[%emt 0:01:31]} (28. Nc6 $11 {und Weiss steht sicher.}) 28... d4 {[%emt 0:00:15]} 29. Bf2 {[%emt 0:01:48]} d3 {[%emt 0:03:30]} 30. cxd3 {[%emt 0:03:18]} Rxd3 {[%emt 0:00:03]} 31. Rfa1 {[%emt 0:03:29]} Rxb3 {[%emt 0:00:35]} 32. g3 {[%emt 0:01:32]} Nxf2 {[%emt 0:00:12]} 33. Kxf2 {[%emt 0:00:06]} Ra3 {[%emt 0:00:07]} 34. R5xa3 {[%emt 0:01:33]} bxa3 {[%emt 0:00:08]} 35. Nb5 {[%emt 0:00:16]} Ra5 {[%emt 0:01:44]} 36. Nc3 {[%emt 0:00:35]} Ra8 {[%emt 0:02:50]} 37. Ke2 {[%emt 0:01:47]} Rb8 {[%emt 0:00:16]} 38. Kd3 {[%emt 0:00:28]} Rb2 {[%emt 0:00:16]} 39. Ra2 {[%emt 0:00:16]} Rxa2 {[%emt 0:00:50]} 40. Nxa2 {[%emt 0:00:00]} Bc5 {[%emt 0:00:00]} 41. Kc3 {[%emt 0:02:10]} Bg1 {[%emt 0:00:20]} 42. Nc1 $1 $11 {[%emt 0:00:47] and White has nothing to worry.} Be3 {[%emt 0:01:19]} (42... Bxh2 $142 43. Ne2 g5 44. fxg5 Kg7) 43. Nd3 {[%emt 0:00:54]} Bg1 $2 {[%emt 0:00:59]} (43... h5 $19 44. Ne1 {[#]} h4 $1 {[%mdl 512]}) 44. h3 $2 {[%emt 0:00:09] [#]} Bd4+ $2 {[%emt 0:01:39]} ({Black should play} 44... g5 $1 $19 {[%mdl 512]} 45. fxg5 Bh2) 45. Kb3 {[%emt 0:00:11]} Bb2 {[%emt 0:00:08]} 46. Nxb2 {[%emt 0:01:09]} axb2 {[%emt 0:00:04]} 47. Kxb2 {[%emt 0:00:08]} h5 {[%emt 0:00:04]} 48. Kc3 {[%emt 0:01:03]} Kh7 {[%emt 0:00:05]} 49. Kd4 {[%emt 0:00:41]} g6 {[%emt 0:00:53]} 50. g4 {[%emt 0:02:57]} hxg4 $11 {[%emt 0:00:09]} 51. hxg4 {[%emt 0:00:06]} Kg7 {[%emt 0:00:06]} 1/2-1/2